[Event "December 12 Early 2023"]
[Site "https://www.chess.com"]
[Date "2023.12.12"]
[Round "11"]
[White "Baskakov, Egor"]
[Black "Yeritsyaan"]
[Result "1-0"]
[Board "24"]
[TimeControl "180+1"]
[WhiteFideId "24197866"]
[WhiteElo "2881"]
[BlackElo "2709"]
[WhiteTeam "RUS"]
[WhiteClock "0:00:39"]
[BlackClock "0:00:00"]

1. e4 {[%clk 0:03:00]}  e5 {[%clk 0:02:56]} 2. Nc3 {[%clk 0:03:00]}  Nf6 {[%clk 0:02:56]} 3. g3 {[%clk 0:03:01]}  Bc5 {[%clk 0:02:55]} 4. Bg2 {[%clk 0:03:01]}  Nc6 {[%clk 0:02:55]} 5. h3 {[%clk 0:03:01]}  a6 {[%clk 0:02:55]} 6. Nge2 {[%clk 0:03:01]}  d6 {[%clk 0:02:55]} 7. d3 {[%clk 0:03:02]}  h5 {[%clk 0:02:45]} 8. Bg5 {[%clk 0:03:00]}  Be6 {[%clk 0:02:44]} 9. Nd5 {[%clk 0:02:58]}  Bxd5 {[%clk 0:02:33]} 10. exd5 {[%clk 0:02:58]}  Ne7 {[%clk 0:02:31]} 11. c4 {[%clk 0:02:54]}  Ng6 {[%clk 0:02:30]} 12. O-O {[%clk 0:02:52]}  h4 {[%clk 0:02:30]} 13. b4 {[%clk 0:02:49]}  Ba7 {[%clk 0:02:25]} 14. g4 {[%clk 0:02:49]}  Qd7 {[%clk 0:02:15]} 15. Nc3 {[%clk 0:02:15]}  Bd4 {[%clk 0:02:12]} 16. Rc1 {[%clk 0:02:15]}  a5 {[%clk 0:01:51]} 17. Nb5 {[%clk 0:02:12]}  axb4 {[%clk 0:01:45]} 18. Nxd4 {[%clk 0:02:11]}  exd4 {[%clk 0:01:46]} 19. Qe1+ {[%clk 0:02:10]}  Kf8 {[%clk 0:01:45]} 20. f4 {[%clk 0:01:40]}  b6 {[%clk 0:01:17]} 21. Rc2 {[%clk 0:01:37]}  Nh7 {[%clk 0:01:16]} 22. Bxh4 {[%clk 0:01:35]}  Ra3 {[%clk 0:01:06]} 23. Rd2 {[%clk 0:01:32]}  Nxh4 {[%clk 0:00:56]} 24. Qxh4 {[%clk 0:01:30]}  Kg8 {[%clk 0:00:57]} 25. Re1 {[%clk 0:01:22]}  Nf6 {[%clk 0:00:40]} 26. Qf2 {[%clk 0:01:22]}  Qa4 {[%clk 0:00:31]} 27. g5 {[%clk 0:01:11]}  Nh5 {[%clk 0:00:30]} 28. f5 {[%clk 0:01:04]}  Kh7 {[%clk 0:00:20]} 29. Re7 {[%clk 0:01:00]}  b3 {[%clk 0:00:12]} 30. axb3 {[%clk 0:00:56]}  Qxb3 {[%clk 0:00:13]} 31. Qh4 {[%clk 0:00:53]}  Qb1+ {[%clk 0:00:06]} 32. Kh2 {[%clk 0:00:52]}  g6 {[%clk 0:00:05]} 33. fxg6+ {[%clk 0:00:48]}  Kxg6 {[%clk 0:00:05]} 34. Qf2 {[%clk 0:00:45]}  Rf8 {[%clk 0:00:02]} 35. Be4+ {[%clk 0:00:39]}  Kg7 {[%clk 0:00:00]} 36. Qf5 {[%clk 0:00:39]} 1-0

[Event "December 12 Early 2023"]
[Site "https://www.chess.com"]
[Date "2023.12.12"]
[Round "11"]
[White "Pakleza, Zbigniew"]
[Black "Xu, Yi"]
[Result "0-1"]
[Board "25"]
[TimeControl "180+1"]
[WhiteFideId "1119290"]
[BlackFideId "8605564"]
[WhiteElo "2715"]
[BlackElo "2868"]
[WhiteTeam "POL"]
[BlackTeam "CHN"]
[WhiteClock "0:00:00"]
[BlackClock "0:00:15"]

1. d4 {[%clk 0:03:00]}  Nf6 {[%clk 0:02:59]} 2. Nf3 {[%clk 0:03:01]}  d5 {[%clk 0:02:59]} 3. Bf4 {[%clk 0:03:01]}  c5 {[%clk 0:02:58]} 4. c3 {[%clk 0:03:02]}  Nc6 {[%clk 0:02:54]} 5. Nbd2 {[%clk 0:03:02]}  cxd4 {[%clk 0:02:47]} 6. cxd4 {[%clk 0:03:03]}  Bf5 {[%clk 0:02:42]} 7. e3 {[%clk 0:03:03]}  e6 {[%clk 0:02:41]} 8. Qb3 {[%clk 0:03:04]}  Qb6 {[%clk 0:02:14]} 9. Qxb6 {[%clk 0:03:03]}  axb6 {[%clk 0:02:14]} 10. Bb5 {[%clk 0:03:04]}  Be7 {[%clk 0:02:11]} 11. Ke2 {[%clk 0:03:04]}  O-O {[%clk 0:02:11]} 12. Rhc1 {[%clk 0:03:04]}  Rfc8 {[%clk 0:02:09]} 13. Ne5 {[%clk 0:03:00]}  Nxe5 {[%clk 0:02:04]} 14. Bxe5 {[%clk 0:03:01]}  Ne4 {[%clk 0:01:43]} 15. Nxe4 {[%clk 0:02:53]}  Bxe4 {[%clk 0:01:44]} 16. f3 {[%clk 0:02:53]}  Bg6 {[%clk 0:01:43]} 17. Bc7 {[%clk 0:02:46]}  Bd8 {[%clk 0:01:38]} 18. Bxd8 {[%clk 0:02:45]}  Rxd8 {[%clk 0:01:38]} 19. Rc7 {[%clk 0:02:42]}  Rab8 {[%clk 0:01:18]} 20. Rac1 {[%clk 0:02:37]}  Kf8 {[%clk 0:01:18]} 21. R1c3 {[%clk 0:02:25]}  f6 {[%clk 0:01:18]} 22. Bd7 {[%clk 0:02:11]}  Ke7 {[%clk 0:01:02]} 23. Bc8+ {[%clk 0:02:08]}  Kd6 {[%clk 0:00:53]} 24. Bxb7 {[%clk 0:02:06]}  Rd7 {[%clk 0:00:53]} 25. R7c6+ {[%clk 0:01:54]}  Ke7 {[%clk 0:00:53]} 26. Bc8 {[%clk 0:01:51]}  Ra7 {[%clk 0:00:49]} 27. Rxe6+ {[%clk 0:01:21]}  Kf7 {[%clk 0:00:49]} 28. Rd6 {[%clk 0:01:15]}  Rxa2 {[%clk 0:00:40]} 29. Rxd5 {[%clk 0:00:19]}  Rxb2+ {[%clk 0:00:39]} 30. Kf1 {[%clk 0:00:18]}  Ra8 {[%clk 0:00:32]} 31. Rc1 {[%clk 0:00:07]}  Raa2 {[%clk 0:00:30]} 32. Rc7+ {[%clk 0:00:04]}  Kf8 {[%clk 0:00:26]} 33. Rd8+ {[%clk 0:00:02]}  Be8 {[%clk 0:00:27]} 34. Rc1 {[%clk 0:00:02]}  Rf2+ {[%clk 0:00:23]} 35. Ke1 {[%clk 0:00:02]}  Rae2+ {[%clk 0:00:21]} 36. Kd1 {[%clk 0:00:02]}  Ke7 {[%clk 0:00:15]} 37. Rd5 {[%clk 0:00:00]}  Ba4+ {[%clk 0:00:15]} 0-1

[Event "December 12 Early 2023"]
[Site "https://www.chess.com"]
[Date "2023.12.12"]
[Round "11"]
[White "Gan-Erdene, Sugar"]
[Black "Cordoba Roa, Angel Gabriel"]
[Result "1-0"]
[Board "32"]
[TimeControl "180+1"]
[WhiteFideId "4902980"]
[BlackFideId "3957624"]
[WhiteElo "2757"]
[BlackElo "2596"]
[WhiteTeam "MGL"]
[BlackTeam "COL"]
[WhiteClock "0:02:54"]
[BlackClock "0:03:02"]

1. e4 {[%clk 0:02:59]}  e5 {[%clk 0:02:59]} 2. Nf3 {[%clk 0:03:00]}  Nc6 {[%clk 0:03:00]} 3. Nc3 {[%clk 0:03:00]}  Nf6 {[%clk 0:03:00]} 4. Bb5 {[%clk 0:03:00]}  Nd4 {[%clk 0:03:00]} 5. Ba4 {[%clk 0:03:00]}  Bc5 {[%clk 0:02:59]} 6. O-O {[%clk 0:03:00]}  O-O {[%clk 0:03:00]} 7. Nxe5 {[%clk 0:02:59]}  Re8 {[%clk 0:03:00]} 8. Nd3 {[%clk 0:02:59]}  Bb6 {[%clk 0:03:00]} 9. e5 {[%clk 0:02:59]}  Ng4 {[%clk 0:03:00]} 10. Qxg4 {[%clk 0:02:58]}  Nxc2 {[%clk 0:03:01]} 11. Bxc2 {[%clk 0:02:57]}  Bxf2+ {[%clk 0:03:00]} 12. Nxf2 {[%clk 0:02:55]}  Qh4 {[%clk 0:03:01]} 13. Qxh4 {[%clk 0:02:55]}  Re7 {[%clk 0:03:02]} 14. Qxe7 {[%clk 0:02:54]}  d6 {[%clk 0:03:02]} 15. Qe8# {[%clk 0:02:54]} 1-0

[Event "December 12 Early 2023"]
[Site "https://www.chess.com"]
[Date "2023.12.12"]
[Round "11"]
[White "Atakhan, Abtin"]
[Black "Hrebenshchykova, Yelyzaveta"]
[Result "1-0"]
[Board "33"]
[TimeControl "180+1"]
[WhiteFideId "22502203"]
[BlackFideId "14159899"]
[WhiteElo "2753"]
[BlackElo "2504"]
[WhiteTeam "IRI"]
[BlackTeam "UKR"]
[WhiteClock "0:02:10"]
[BlackClock "0:00:08"]

1. c4 {[%clk 0:03:00]}  Nf6 {[%clk 0:02:59]} 2. Nc3 {[%clk 0:03:01]}  g6 {[%clk 0:02:46]} 3. e4 {[%clk 0:03:01]}  d6 {[%clk 0:02:46]} 4. d4 {[%clk 0:03:02]}  Bg7 {[%clk 0:02:47]} 5. Be2 {[%clk 0:03:02]}  O-O {[%clk 0:02:47]} 6. Be3 {[%clk 0:03:03]}  e5 {[%clk 0:02:46]} 7. d5 {[%clk 0:03:03]}  Na6 {[%clk 0:02:24]} 8. g4 {[%clk 0:03:03]}  Nc5 {[%clk 0:02:23]} 9. f3 {[%clk 0:03:04]}  a5 {[%clk 0:02:20]} 10. h4 {[%clk 0:03:04]}  h5 {[%clk 0:02:20]} 11. g5 {[%clk 0:03:04]}  Nh7 {[%clk 0:02:18]} 12. Qd2 {[%clk 0:02:56]}  Bd7 {[%clk 0:02:17]} 13. b3 {[%clk 0:02:54]}  f6 {[%clk 0:02:11]} 14. gxf6 {[%clk 0:02:38]}  Rxf6 {[%clk 0:01:31]} 15. Nh3 {[%clk 0:02:36]}  Bxh3 {[%clk 0:01:25]} 16. Rxh3 {[%clk 0:02:37]}  Rf4 {[%clk 0:01:19]} 17. O-O-O {[%clk 0:02:21]}  Rxh4 {[%clk 0:01:19]} 18. Rg3 {[%clk 0:02:22]}  Rh2 {[%clk 0:00:33]} 19. Rxg6 {[%clk 0:02:21]}  Kh8 {[%clk 0:00:33]} 20. Rdg1 {[%clk 0:02:17]}  Qd7 {[%clk 0:00:29]} 21. Rxg7 {[%clk 0:02:14]}  Qxg7 {[%clk 0:00:29]} 22. Rxg7 {[%clk 0:02:15]}  Kxg7 {[%clk 0:00:30]} 23. Qe1 {[%clk 0:02:10]}  Kf7 {[%clk 0:00:26]} 24. Qg1 {[%clk 0:02:08]}  Rh3 {[%clk 0:00:20]} 25. Bxc5 {[%clk 0:02:07]}  dxc5 {[%clk 0:00:20]} 26. Qxc5 {[%clk 0:02:08]}  Rh1+ {[%clk 0:00:19]} 27. Kb2 {[%clk 0:02:08]}  Rc8 {[%clk 0:00:19]} 28. d6 {[%clk 0:02:09]}  c6 {[%clk 0:00:19]} 29. Qxe5 {[%clk 0:02:09]}  Re8 {[%clk 0:00:14]} 30. Qf5+ {[%clk 0:02:09]}  Nf6 {[%clk 0:00:08]} 31. e5 {[%clk 0:02:10]} 1-0

[Event "December 12 Early 2023"]
[Site "https://www.chess.com"]
[Date "2023.12.12"]
[Round "11"]
[White "Gormally, Daniel W"]
[Black "Shubenkova, Veronika"]
[Result "1-0"]
[Board "40"]
[TimeControl "180+1"]
[WhiteFideId "406465"]
[BlackFideId "44124040"]
[WhiteElo "2759"]
[BlackElo "2599"]
[WhiteTeam "ENG"]
[BlackTeam "RUS"]
[WhiteClock "0:00:37"]
[BlackClock "0:00:06"]

1. d4 {[%clk 0:02:57]}  d5 {[%clk 0:02:59]} 2. c4 {[%clk 0:02:57]}  e6 {[%clk 0:03:00]} 3. Nf3 {[%clk 0:02:57]}  f5 {[%clk 0:03:00]} 4. Nc3 {[%clk 0:02:57]}  Nf6 {[%clk 0:03:00]} 5. Bf4 {[%clk 0:02:57]}  c6 {[%clk 0:03:00]} 6. e3 {[%clk 0:02:57]}  Bd6 {[%clk 0:03:00]} 7. Bd3 {[%clk 0:02:56]}  O-O {[%clk 0:03:00]} 8. O-O {[%clk 0:02:55]}  Ne4 {[%clk 0:03:00]} 9. Bxe4 {[%clk 0:02:55]}  fxe4 {[%clk 0:02:59]} 10. Ne5 {[%clk 0:02:56]}  Qe7 {[%clk 0:02:59]} 11. f3 {[%clk 0:02:55]}  exf3 {[%clk 0:02:58]} 12. Rxf3 {[%clk 0:02:55]}  Nd7 {[%clk 0:02:57]} 13. Nxd7 {[%clk 0:02:51]}  Bxd7 {[%clk 0:02:57]} 14. Bxd6 {[%clk 0:02:49]}  Qxd6 {[%clk 0:02:58]} 15. c5 {[%clk 0:02:42]}  Qe7 {[%clk 0:02:57]} 16. e4 {[%clk 0:02:41]}  Rxf3 {[%clk 0:02:50]} 17. Qxf3 {[%clk 0:02:41]}  Rf8 {[%clk 0:02:50]} 18. Qe3 {[%clk 0:02:41]}  Qh4 {[%clk 0:02:42]} 19. h3 {[%clk 0:02:35]}  b6 {[%clk 0:02:42]} 20. cxb6 {[%clk 0:02:30]}  axb6 {[%clk 0:02:42]} 21. b4 {[%clk 0:02:31]}  Qf4 {[%clk 0:02:15]} 22. Qxf4 {[%clk 0:02:24]}  Rxf4 {[%clk 0:02:15]} 23. Rf1 {[%clk 0:02:23]}  Rh4 {[%clk 0:02:15]} 24. Re1 {[%clk 0:02:12]}  Kf7 {[%clk 0:02:13]} 25. Kf2 {[%clk 0:02:07]}  g5 {[%clk 0:02:12]} 26. Ke3 {[%clk 0:02:06]}  Ke7 {[%clk 0:01:57]} 27. a4 {[%clk 0:02:02]}  c5 {[%clk 0:01:45]} 28. dxc5 {[%clk 0:01:53]}  bxc5 {[%clk 0:01:44]} 29. bxc5 {[%clk 0:01:53]}  Bxa4 {[%clk 0:01:42]} 30. exd5 {[%clk 0:01:51]}  exd5 {[%clk 0:01:37]} 31. Nxd5+ {[%clk 0:01:51]}  Kd7 {[%clk 0:01:21]} 32. Nb6+ {[%clk 0:01:48]}  Kc6 {[%clk 0:01:21]} 33. Nxa4 {[%clk 0:01:48]}  Rxa4 {[%clk 0:01:21]} 34. Kf3 {[%clk 0:01:47]}  Rf4+ {[%clk 0:01:19]} 35. Kg3 {[%clk 0:01:47]}  Rf6 {[%clk 0:01:09]} 36. Re5 {[%clk 0:01:37]}  h6 {[%clk 0:01:04]} 37. Kg4 {[%clk 0:01:37]}  Rf2 {[%clk 0:01:03]} 38. g3 {[%clk 0:01:37]}  Rf6 {[%clk 0:00:58]} 39. Kh5 {[%clk 0:01:19]}  Rf3 {[%clk 0:00:58]} 40. Kg4 {[%clk 0:01:01]}  Rf6 {[%clk 0:00:58]} 41. h4 {[%clk 0:00:55]}  gxh4 {[%clk 0:00:49]} 42. gxh4 {[%clk 0:00:55]}  Rg6+ {[%clk 0:00:48]} 43. Kf5 {[%clk 0:00:54]}  Rg1 {[%clk 0:00:41]} 44. Re6+ {[%clk 0:00:49]}  Kxc5 {[%clk 0:00:41]} 45. Rxh6 {[%clk 0:00:50]}  Kd5 {[%clk 0:00:42]} 46. h5 {[%clk 0:00:49]}  Rf1+ {[%clk 0:00:42]} 47. Kg6 {[%clk 0:00:49]}  Rg1+ {[%clk 0:00:36]} 48. Kf7 {[%clk 0:00:46]}  Rf1+ {[%clk 0:00:35]} 49. Rf6 {[%clk 0:00:45]}  Rh1 {[%clk 0:00:31]} 50. h6 {[%clk 0:00:46]}  Ke5 {[%clk 0:00:32]} 51. Kg7 {[%clk 0:00:45]}  Rh2 {[%clk 0:00:16]} 52. Rg6 {[%clk 0:00:38]}  Kf5 {[%clk 0:00:15]} 53. h7 {[%clk 0:00:38]}  Rh3 {[%clk 0:00:06]} 54. Rg1 {[%clk 0:00:37]} 1-0

[Event "December 12 Early 2023"]
[Site "https://www.chess.com"]
[Date "2023.12.12"]
[Round "11"]
[White "Principe, Gerson"]
[Black "Mindlin, Alon"]
[Result "0-1"]
[Board "42"]
[TimeControl "180+1"]
[WhiteFideId "3804550"]
[BlackFideId "2800071"]
[WhiteElo "2628"]
[BlackElo "2728"]
[WhiteTeam "PER"]
[BlackTeam "ISR"]
[WhiteClock "0:00:04"]
[BlackClock "0:01:35"]

1. d4 {[%clk 0:02:56]}  Nf6 {[%clk 0:02:58]} 2. Nf3 {[%clk 0:02:56]}  d5 {[%clk 0:02:57]} 3. e3 {[%clk 0:02:47]}  c5 {[%clk 0:02:54]} 4. Be2 {[%clk 0:02:48]}  Nc6 {[%clk 0:02:55]} 5. O-O {[%clk 0:02:47]}  Bg4 {[%clk 0:02:55]} 6. Nbd2 {[%clk 0:02:47]}  e6 {[%clk 0:02:56]} 7. b3 {[%clk 0:02:47]}  Bd6 {[%clk 0:02:54]} 8. Bb2 {[%clk 0:02:47]}  cxd4 {[%clk 0:02:54]} 9. exd4 {[%clk 0:02:47]}  O-O {[%clk 0:02:54]} 10. c4 {[%clk 0:02:46]}  Rc8 {[%clk 0:02:53]} 11. c5 {[%clk 0:02:40]}  Bf4 {[%clk 0:02:52]} 12. a3 {[%clk 0:02:37]}  a5 {[%clk 0:02:51]} 13. g3 {[%clk 0:02:34]}  Bh6 {[%clk 0:02:42]} 14. Ne1 {[%clk 0:01:40]}  Bh3 {[%clk 0:02:36]} 15. Ng2 {[%clk 0:01:38]}  b6 {[%clk 0:02:33]} 16. Ba6 {[%clk 0:01:29]}  Rb8 {[%clk 0:02:32]} 17. Bb5 {[%clk 0:01:26]}  Ne7 {[%clk 0:02:24]} 18. c6 {[%clk 0:01:21]}  Ne8 {[%clk 0:02:22]} 19. a4 {[%clk 0:01:19]}  Nc7 {[%clk 0:02:17]} 20. Qe2 {[%clk 0:01:06]}  Re8 {[%clk 0:02:16]} 21. Nf3 {[%clk 0:01:02]}  Bg4 {[%clk 0:02:12]} 22. Ne3 {[%clk 0:01:02]}  Bh5 {[%clk 0:02:12]} 23. Kg2 {[%clk 0:00:52]}  Nc8 {[%clk 0:02:09]} 24. h4 {[%clk 0:00:38]}  Nd6 {[%clk 0:02:08]} 25. g4 {[%clk 0:00:37]}  Bxe3 {[%clk 0:02:03]} 26. gxh5 {[%clk 0:00:37]}  Bh6 {[%clk 0:02:03]} 27. Bc1 {[%clk 0:00:34]}  Bxc1 {[%clk 0:02:01]} 28. Raxc1 {[%clk 0:00:34]}  Nf5 {[%clk 0:02:02]} 29. Rh1 {[%clk 0:00:32]}  Qf6 {[%clk 0:02:00]} 30. Ne5 {[%clk 0:00:25]}  Nxd4 {[%clk 0:01:56]} 31. Qe3 {[%clk 0:00:24]}  Nf5 {[%clk 0:01:56]} 32. Qe2 {[%clk 0:00:23]}  Nxh4+ {[%clk 0:01:54]} 33. Kf1 {[%clk 0:00:23]}  Qf4 {[%clk 0:01:51]} 34. Rd1 {[%clk 0:00:19]}  Nf5 {[%clk 0:01:49]} 35. Kg2 {[%clk 0:00:18]}  Nd4 {[%clk 0:01:39]} 36. Qe3 {[%clk 0:00:09]}  Qxe3 {[%clk 0:01:39]} 37. fxe3 {[%clk 0:00:10]}  Ndxb5 {[%clk 0:01:39]} 38. axb5 {[%clk 0:00:11]}  Nxb5 {[%clk 0:01:39]} 39. Rc1 {[%clk 0:00:09]}  Rbc8 {[%clk 0:01:36]} 40. Nd7 {[%clk 0:00:09]}  Na7 {[%clk 0:01:36]} 41. c7 {[%clk 0:00:08]}  Nb5 {[%clk 0:01:36]} 42. h6 {[%clk 0:00:07]}  Rxc7 {[%clk 0:01:36]} 43. hxg7 {[%clk 0:00:04]}  Rxd7 {[%clk 0:01:35]} 0-1

[Event "December 12 Early 2023"]
[Site "https://www.chess.com"]
[Date "2023.12.12"]
[Round "11"]
[White "Rogov, Matfey"]
[Black "Kosteniuk, Alexandra"]
[Result "0-1"]
[Board "43"]
[TimeControl "180+1"]
[WhiteFideId "44191308"]
[BlackFideId "4128125"]
[WhiteElo "2540"]
[BlackElo "2708"]
[WhiteTeam "RUS"]
[BlackTeam "SUI"]
[WhiteClock "0:00:02"]
[BlackClock "0:00:21"]

1. e4 {[%clk 0:03:00]}  c6 {[%clk 0:03:00]} 2. d4 {[%clk 0:03:00]}  d5 {[%clk 0:03:00]} 3. f3 {[%clk 0:03:01]}  e6 {[%clk 0:03:00]} 4. Nc3 {[%clk 0:03:01]}  Bb4 {[%clk 0:02:59]} 5. a3 {[%clk 0:03:01]}  Bxc3+ {[%clk 0:02:58]} 6. bxc3 {[%clk 0:03:02]}  Nf6 {[%clk 0:02:58]} 7. e5 {[%clk 0:03:00]}  Nfd7 {[%clk 0:02:57]} 8. f4 {[%clk 0:03:00]}  c5 {[%clk 0:02:55]} 9. Nf3 {[%clk 0:03:01]}  Nc6 {[%clk 0:02:55]} 10. a4 {[%clk 0:03:01]}  b6 {[%clk 0:02:50]} 11. Be2 {[%clk 0:02:52]}  Bb7 {[%clk 0:02:43]} 12. O-O {[%clk 0:02:52]}  Qc7 {[%clk 0:02:42]} 13. Kh1 {[%clk 0:02:47]}  Ne7 {[%clk 0:02:37]} 14. a5 {[%clk 0:02:38]}  bxa5 {[%clk 0:02:20]} 15. Ba3 {[%clk 0:02:34]}  Nf5 {[%clk 0:02:11]} 16. Bb5 {[%clk 0:02:09]}  Bc6 {[%clk 0:02:08]} 17. Qe2 {[%clk 0:01:55]}  O-O {[%clk 0:02:05]} 18. Bd3 {[%clk 0:01:44]}  Rfe8 {[%clk 0:01:46]} 19. g4 {[%clk 0:01:32]}  Nh6 {[%clk 0:01:40]} 20. Nh4 {[%clk 0:01:22]}  c4 {[%clk 0:01:27]} 21. Bxh7+ {[%clk 0:00:54]}  Kxh7 {[%clk 0:01:28]} 22. Rg1 {[%clk 0:00:23]}  g6 {[%clk 0:01:16]} 23. Rg3 {[%clk 0:00:19]}  Kg7 {[%clk 0:01:09]} 24. Rag1 {[%clk 0:00:17]}  Rh8 {[%clk 0:00:57]} 25. f5 {[%clk 0:00:16]}  Rae8 {[%clk 0:00:52]} 26. Qf3 {[%clk 0:00:09]}  Nxe5 {[%clk 0:00:48]} 27. dxe5 {[%clk 0:00:08]}  d4 {[%clk 0:00:47]} 28. Bd6 {[%clk 0:00:04]}  Qb7 {[%clk 0:00:45]} 29. fxg6 {[%clk 0:00:03]}  fxg6 {[%clk 0:00:43]} 30. Rf1 {[%clk 0:00:02]}  Bxf3+ {[%clk 0:00:42]} 31. Rgxf3 {[%clk 0:00:03]}  Rhf8 {[%clk 0:00:38]} 32. Kg1 {[%clk 0:00:03]}  Rxf3 {[%clk 0:00:37]} 33. Nxf3 {[%clk 0:00:04]}  dxc3 {[%clk 0:00:27]} 34. h3 {[%clk 0:00:04]}  Nf7 {[%clk 0:00:26]} 35. Bc5 {[%clk 0:00:03]}  Qd5 {[%clk 0:00:24]} 36. Be3 {[%clk 0:00:02]}  Nxe5 {[%clk 0:00:23]} 37. Ng5 {[%clk 0:00:02]}  Rf8 {[%clk 0:00:23]} 38. Re1 {[%clk 0:00:02]}  Nf3+ {[%clk 0:00:21]} 39. Nxf3 {[%clk 0:00:02]}  Rxf3 {[%clk 0:00:21]} 40. Bxa7 {[%clk 0:00:01]}  Rg3+ {[%clk 0:00:21]} 41. Kf2 {[%clk 0:00:02]}  Qg2# {[%clk 0:00:21]} 0-1

[Event "December 12 Early 2023"]
[Site "https://www.chess.com"]
[Date "2023.12.12"]
[Round "11"]
[White "Nagare Kaivalya Sandip"]
[Black "Erzhanov, Arman"]
[Result "1-0"]
[Board "44"]
[TimeControl "180+1"]
[WhiteFideId "25957929"]
[BlackFideId "4138821"]
[WhiteElo "2684"]
[BlackElo "2536"]
[WhiteTeam "IND"]
[BlackTeam "KAZ"]
[WhiteClock "0:00:49"]
[BlackClock "0:00:03"]

1. e4 {[%clk 0:03:00]}  d6 {[%clk 0:03:00]} 2. d4 {[%clk 0:03:00]}  Nf6 {[%clk 0:03:00]} 3. Nc3 {[%clk 0:03:00]}  c6 {[%clk 0:03:00]} 4. Bc4 {[%clk 0:03:01]}  d5 {[%clk 0:03:00]} 5. exd5 {[%clk 0:03:01]}  cxd5 {[%clk 0:03:01]} 6. Bb5+ {[%clk 0:03:01]}  Nc6 {[%clk 0:03:01]} 7. Nf3 {[%clk 0:03:01]}  Bg4 {[%clk 0:03:01]} 8. h3 {[%clk 0:03:00]}  Bxf3 {[%clk 0:03:01]} 9. Qxf3 {[%clk 0:03:01]}  e6 {[%clk 0:03:02]} 10. O-O {[%clk 0:03:00]}  a6 {[%clk 0:03:01]} 11. Bxc6+ {[%clk 0:03:01]}  bxc6 {[%clk 0:03:02]} 12. Na4 {[%clk 0:03:01]}  Ne4 {[%clk 0:02:57]} 13. c4 {[%clk 0:03:00]}  Be7 {[%clk 0:02:51]} 14. Nc3 {[%clk 0:02:59]}  Nxc3 {[%clk 0:02:50]} 15. bxc3 {[%clk 0:03:00]}  O-O {[%clk 0:02:49]} 16. Bf4 {[%clk 0:03:00]}  Qa5 {[%clk 0:02:48]} 17. Rfb1 {[%clk 0:02:56]}  dxc4 {[%clk 0:02:38]} 18. Rb7 {[%clk 0:02:55]}  Bf6 {[%clk 0:02:30]} 19. Bd6 {[%clk 0:02:53]}  Rfd8 {[%clk 0:02:18]} 20. Bc7 {[%clk 0:02:52]}  Qd5 {[%clk 0:02:06]} 21. Bxd8 {[%clk 0:02:51]}  Qxf3 {[%clk 0:02:06]} 22. gxf3 {[%clk 0:02:51]}  Rxd8 {[%clk 0:02:06]} 23. Rab1 {[%clk 0:02:51]}  Rd5 {[%clk 0:01:52]} 24. Rb8+ {[%clk 0:02:50]}  Bd8 {[%clk 0:01:52]} 25. Rc8 {[%clk 0:02:48]}  Kf8 {[%clk 0:01:51]} 26. Rxc6 {[%clk 0:02:48]}  a5 {[%clk 0:01:47]} 27. Rxc4 {[%clk 0:02:47]}  g6 {[%clk 0:01:47]} 28. Rb8 {[%clk 0:02:44]}  Kg7 {[%clk 0:01:46]} 29. Rc5 {[%clk 0:02:42]}  Rd7 {[%clk 0:01:46]} 30. Rxd8 {[%clk 0:02:39]}  Rxd8 {[%clk 0:01:46]} 31. Rxa5 {[%clk 0:02:40]}  Rc8 {[%clk 0:01:39]} 32. Rc5 {[%clk 0:02:40]}  Ra8 {[%clk 0:01:39]} 33. Rc7 {[%clk 0:02:38]}  Rxa2 {[%clk 0:01:39]} 34. Kg2 {[%clk 0:02:39]}  Rd2 {[%clk 0:01:38]} 35. Kg3 {[%clk 0:02:38]}  Kf6 {[%clk 0:01:36]} 36. h4 {[%clk 0:02:31]}  h5 {[%clk 0:01:35]} 37. Rc8 {[%clk 0:02:30]}  Ke7 {[%clk 0:01:30]} 38. f4 {[%clk 0:02:28]}  Rd3+ {[%clk 0:01:29]} 39. Kg2 {[%clk 0:02:28]}  Kf6 {[%clk 0:01:27]} 40. Rc7 {[%clk 0:02:26]}  Kg7 {[%clk 0:01:24]} 41. f3 {[%clk 0:02:22]}  Rd2+ {[%clk 0:01:23]} 42. Kg3 {[%clk 0:02:22]}  Kf6 {[%clk 0:01:23]} 43. Rd7 {[%clk 0:02:19]}  Rc2 {[%clk 0:01:22]} 44. Rc7 {[%clk 0:02:19]}  Rd2 {[%clk 0:01:23]} 45. Rc5 {[%clk 0:02:18]}  Ke7 {[%clk 0:01:22]} 46. f5 {[%clk 0:02:12]}  gxf5 {[%clk 0:01:14]} 47. Kf4 {[%clk 0:02:12]}  Kf6 {[%clk 0:01:11]} 48. Rc8 {[%clk 0:02:08]}  Rh2 {[%clk 0:01:05]} 49. Kg3 {[%clk 0:02:03]}  Rd2 {[%clk 0:01:00]} 50. Kf4 {[%clk 0:02:03]}  Rh2 {[%clk 0:01:00]} 51. c4 {[%clk 0:02:04]}  Rxh4+ {[%clk 0:00:59]} 52. Ke3 {[%clk 0:02:03]}  Rh1 {[%clk 0:00:57]} 53. c5 {[%clk 0:02:02]}  h4 {[%clk 0:00:56]} 54. Rh8 {[%clk 0:02:01]}  h3 {[%clk 0:00:51]} 55. Kf4 {[%clk 0:01:59]}  Rd1 {[%clk 0:00:47]} 56. Ke3 {[%clk 0:01:57]}  Rh1 {[%clk 0:00:43]} 57. Kd2 {[%clk 0:01:56]}  h2 {[%clk 0:00:42]} 58. c6 {[%clk 0:01:49]}  Ra1 {[%clk 0:00:19]} 59. c7 {[%clk 0:01:45]}  Ra2+ {[%clk 0:00:19]} 60. Kd3 {[%clk 0:01:43]}  Ra3+ {[%clk 0:00:19]} 61. Kc4 {[%clk 0:01:41]}  Ra1 {[%clk 0:00:18]} 62. Kb5 {[%clk 0:01:36]}  Rc1 {[%clk 0:00:18]} 63. Kb6 {[%clk 0:01:36]}  Ke7 {[%clk 0:00:07]} 64. Rxh2 {[%clk 0:01:26]}  Kd7 {[%clk 0:00:06]} 65. Rh7 {[%clk 0:01:25]}  Rb1+ {[%clk 0:00:06]} 66. Kc5 {[%clk 0:01:24]}  Rc1+ {[%clk 0:00:06]} 67. Kb4 {[%clk 0:01:24]}  Kxc7 {[%clk 0:00:06]} 68. Rxf7+ {[%clk 0:01:23]}  Kd6 {[%clk 0:00:07]} 69. Ra7 {[%clk 0:01:19]}  Rf1 {[%clk 0:00:06]} 70. Ra3 {[%clk 0:01:19]}  Kd5 {[%clk 0:00:07]} 71. Re3 {[%clk 0:01:13]}  f4 {[%clk 0:00:06]} 72. Re5+ {[%clk 0:01:07]}  Kxd4 {[%clk 0:00:06]} 73. Re4+ {[%clk 0:01:07]}  Kd5 {[%clk 0:00:05]} 74. Rxf4 {[%clk 0:01:08]}  e5 {[%clk 0:00:05]} 75. Rf8 {[%clk 0:01:08]}  Re1 {[%clk 0:00:05]} 76. Kc3 {[%clk 0:01:08]}  e4 {[%clk 0:00:05]} 77. f4 {[%clk 0:01:07]}  Re3+ {[%clk 0:00:04]} 78. Kd2 {[%clk 0:01:07]}  Rf3 {[%clk 0:00:05]} 79. Ke2 {[%clk 0:01:08]}  Rb3 {[%clk 0:00:05]} 80. Re8 {[%clk 0:01:06]}  Rb2+ {[%clk 0:00:05]} 81. Ke3 {[%clk 0:01:06]}  Rb3+ {[%clk 0:00:06]} 82. Kf2 {[%clk 0:01:06]}  Rb2+ {[%clk 0:00:06]} 83. Kg3 {[%clk 0:01:07]}  Rb3+ {[%clk 0:00:07]} 84. Kg4 {[%clk 0:01:07]}  e3 {[%clk 0:00:07]} 85. Kf3 {[%clk 0:01:04]}  Kd4 {[%clk 0:00:08]} 86. Rd8+ {[%clk 0:01:02]}  Kc5 {[%clk 0:00:06]} 87. f5 {[%clk 0:00:58]}  Kc6 {[%clk 0:00:06]} 88. Rd4 {[%clk 0:00:54]}  Rb7 {[%clk 0:00:04]} 89. Kxe3 {[%clk 0:00:53]}  Rd7 {[%clk 0:00:04]} 90. Re4 {[%clk 0:00:48]}  Kd6 {[%clk 0:00:04]} 91. Kf4 {[%clk 0:00:49]}  Re7 {[%clk 0:00:04]} 92. Rd4+ {[%clk 0:00:49]}  Kc5 {[%clk 0:00:04]} 93. Rd1 {[%clk 0:00:49]}  Kc6 {[%clk 0:00:02]} 94. f6 {[%clk 0:00:50]}  Rd7 {[%clk 0:00:02]} 95. Rxd7 {[%clk 0:00:45]}  Kxd7 {[%clk 0:00:03]} 96. Kf5 {[%clk 0:00:46]}  Ke8 {[%clk 0:00:03]} 97. Kg6 {[%clk 0:00:46]}  Kf8 {[%clk 0:00:04]} 98. f7 {[%clk 0:00:47]}  Ke7 {[%clk 0:00:04]} 99. Kg7 {[%clk 0:00:48]}  Kd6 {[%clk 0:00:03]} 100. f8=Q+ {[%clk 0:00:49]} 1-0